[Event "Live Chess"]
[Site "Chess.com"]
[Date "2023.05.21"]
[Round "-"]
[White "hturner40"]
[Black "Ed_Knox"]
[Result "1-0"]
[WhiteElo "1775"]
[BlackElo "1452"]
[TimeControl "300"]
[EndTime "6:30:59 PDT"]
[Termination "hturner40 won by checkmate"]

1. Nf3 {[%clk 0:04:55.6]} 1... g6 {[%clk 0:04:56.4]} 2. g3 {[%clk 0:04:48.8]}
2... Bg7 {[%clk 0:04:55.3]} 3. Bg2 {[%clk 0:04:48.3]} 3... c5 {[%clk 0:04:52.4]}
4. O-O {[%clk 0:04:46.6]} 4... Nc6 {[%clk 0:04:51.1]} 5. c4 {[%clk 0:04:44.5]}
5... Nf6 {[%clk 0:04:45.2]} 6. Nc3 {[%clk 0:04:43.8]} 6... O-O {[%clk
0:04:42.4]} 7. d4 {[%clk 0:04:42.8]} 7... cxd4 {[%clk 0:04:39.9]} 8. Nxd4 {[%clk
0:04:41.6]} 8... Nxd4 {[%clk 0:04:36.1]} 9. Qxd4 {[%clk 0:04:40.4]} 9... d6
{[%clk 0:04:33.8]} 10. Qh4 {[%clk 0:04:38]} 10... e6 {[%clk 0:04:23]} 11. Bg5
{[%clk 0:04:35.1]} 11... d5 {[%clk 0:03:49.2]} 12. cxd5 {[%clk 0:04:30.2]} 12...
exd5 {[%clk 0:03:43.3]} 13. Nxd5 {[%clk 0:04:29]} 13... Qa5 {[%clk 0:03:16.3]}
14. Nxf6+ {[%clk 0:04:16.6]} 14... Kh8 {[%clk 0:03:02.6]} 15. Qxh7# {[%clk
0:04:13.8]} 1-0

[Event "Live Chess"]
[Site "Chess.com"]
[Date "2023.05.21"]
[Round "-"]
[White "McSlash1"]
[Black "GwaryTek"]
[Result "0-1"]
[WhiteElo "1998"]
[BlackElo "2072"]
[TimeControl "300"]
[EndTime "6:31:14 PDT"]
[Termination "GwaryTek won by resignation"]

1. e4 {[%clk 0:04:59.6]} 1... Nf6 {[%clk 0:04:55.2]} 2. e5 {[%clk 0:04:58.4]}
2... Nd5 {[%clk 0:04:54.1]} 3. Nc3 {[%clk 0:04:58]} 3... Nxc3 {[%clk 0:04:53.2]}
4. bxc3 {[%clk 0:04:57.9]} 4... d5 {[%clk 0:04:52.3]} 5. d4 {[%clk 0:04:57.1]}
5... c5 {[%clk 0:04:51.7]} 6. f4 {[%clk 0:04:57]} 6... Nc6 {[%clk 0:04:51]} 7.
Nf3 {[%clk 0:04:56.1]} 7... Bg4 {[%clk 0:04:50]} 8. Be2 {[%clk 0:04:54.3]} 8...
e6 {[%clk 0:04:49]} 9. h3 {[%clk 0:04:53.8]} 9... Bxf3 {[%clk 0:04:47.3]} 10.
Bxf3 {[%clk 0:04:53.7]} 10... Qa5 {[%clk 0:04:45.7]} 11. Bd2 {[%clk 0:04:52.1]}
11... Qb6 {[%clk 0:04:40.2]} 12. Rb1 {[%clk 0:04:49.7]} 12... Qc7 {[%clk
0:04:37.6]} 13. Be3 {[%clk 0:04:45.8]} 13... Be7 {[%clk 0:04:35.2]} 14. O-O
{[%clk 0:04:44.8]} 14... O-O {[%clk 0:04:33.3]} 15. g4 {[%clk 0:04:40.6]} 15...
f5 {[%clk 0:04:31.9]} 16. exf6 {[%clk 0:04:39.4]} 16... Bxf6 {[%clk 0:04:31.4]}
17. g5 {[%clk 0:04:36.6]} 17... Bxd4 {[%clk 0:04:01.2]} 18. cxd4 {[%clk
0:04:36.5]} 18... cxd4 {[%clk 0:03:59.9]} 19. Bxd4 {[%clk 0:04:34.3]} 19... Qxf4
{[%clk 0:03:58.4]} 20. Bc5 {[%clk 0:04:13.5]} 20... Qxg5+ {[%clk 0:03:17.5]} 21.
Bg2 {[%clk 0:04:11.9]} 21... Rxf1+ {[%clk 0:03:15.5]} 22. Qxf1 {[%clk
0:04:10.3]} 22... b6 {[%clk 0:03:11.5]} 23. Ba3 {[%clk 0:04:06.4]} 23... Qe3+
{[%clk 0:03:03.2]} 24. Kh1 {[%clk 0:04:04.7]} 24... Qxa3 {[%clk 0:03:01.5]} 25.
c4 {[%clk 0:03:57.4]} 25... Rf8 {[%clk 0:02:56.3]} 26. Qe2 {[%clk 0:03:56]}
26... Nd4 {[%clk 0:02:48.9]} 27. Qe5 {[%clk 0:03:54.9]} 27... Qxa2 {[%clk
0:02:20.9]} 28. Re1 {[%clk 0:03:50.3]} 28... Qxc4 {[%clk 0:02:04.5]} 29. Rg1
{[%clk 0:01:12.3]} 29... Qd3 {[%clk 0:01:08.5]} 30. Bxd5 {[%clk 0:00:58.6]}
30... Qxh3+ {[%clk 0:01:03.2]} 0-1

[Event "Live Chess"]
[Site "Chess.com"]
[Date "2023.05.21"]
[Round "-"]
[White "GMHarry-youtube"]
[Black "mliszewski"]
[Result "0-1"]
[WhiteElo "2031"]
[BlackElo "1810"]
[TimeControl "300"]
[EndTime "6:31:15 PDT"]
[Termination "mliszewski won by checkmate"]

1. e4 {[%clk 0:04:59.2]} 1... c6 {[%clk 0:04:59]} 2. d4 {[%clk 0:04:57.6]} 2...
d5 {[%clk 0:04:58.9]} 3. e5 {[%clk 0:04:57.3]} 3... c5 {[%clk 0:04:57.8]} 4.
dxc5 {[%clk 0:04:57.2]} 4... Nc6 {[%clk 0:04:56.3]} 5. Nf3 {[%clk 0:04:55.2]}
5... Bg4 {[%clk 0:04:54.6]} 6. Be3 {[%clk 0:04:51]} 6... e6 {[%clk 0:04:49.9]}
7. Bb5 {[%clk 0:04:48.4]} 7... Ne7 {[%clk 0:04:47.9]} 8. b4 {[%clk 0:04:44]}
8... Ng6 {[%clk 0:04:45]} 9. Qd2 {[%clk 0:04:29.1]} 9... Bxf3 {[%clk 0:04:42.3]}
10. gxf3 {[%clk 0:04:27.5]} 10... Nxe5 {[%clk 0:04:42]} 11. Qe2 {[%clk
0:04:24.1]} 11... Be7 {[%clk 0:04:36.5]} 12. f4 {[%clk 0:04:23]} 12... Ng6
{[%clk 0:04:34.7]} 13. c3 {[%clk 0:04:12.5]} 13... O-O {[%clk 0:04:32.3]} 14. h4
{[%clk 0:04:11.6]} 14... Nxh4 {[%clk 0:04:24.8]} 15. Nd2 {[%clk 0:04:04.5]}
15... Bf6 {[%clk 0:04:20.8]} 16. Bd3 {[%clk 0:03:53.4]} 16... h6 {[%clk
0:04:11.7]} 17. Nf3 {[%clk 0:03:49.5]} 17... Bxc3+ {[%clk 0:04:08.8]} 18. Kd1
{[%clk 0:03:47.3]} 18... Nxf3 {[%clk 0:04:07.2]} 19. Rc1 {[%clk 0:03:42.9]}
19... d4 {[%clk 0:04:01.6]} 20. Qxf3 {[%clk 0:03:38.6]} 20... dxe3 {[%clk
0:03:55.7]} 21. Rxc3 {[%clk 0:03:36.8]} 21... Nxb4 {[%clk 0:03:51.6]} 22. Qe4
{[%clk 0:03:34.2]} 22... Nxd3 {[%clk 0:03:49.3]} 23. Rxd3 {[%clk 0:03:33.3]}
23... Qf6 {[%clk 0:03:44.2]} 24. fxe3 {[%clk 0:03:28.3]} 24... Qa1+ {[%clk
0:03:42]} 25. Ke2 {[%clk 0:03:27.2]} 25... Qxa2+ {[%clk 0:03:40.7]} 26. Kf3
{[%clk 0:03:26.1]} 26... Rad8 {[%clk 0:03:38.3]} 27. Rhd1 {[%clk 0:03:23.4]}
27... Rxd3 {[%clk 0:03:35.9]} 28. Rxd3 {[%clk 0:03:23.3]} 28... Qh2 {[%clk
0:03:32.9]} 29. Rd1 {[%clk 0:03:12.1]} 29... Qh5+ {[%clk 0:03:30.3]} 30. Kf2
{[%clk 0:03:09.9]} 30... Qxd1 {[%clk 0:03:29.1]} 31. Qxb7 {[%clk 0:03:09.2]}
31... Qd2+ {[%clk 0:03:22.8]} 32. Kf1 {[%clk 0:03:05.5]} 32... Qxe3 {[%clk
0:03:19]} 33. c6 {[%clk 0:03:03.9]} 33... h5 {[%clk 0:03:05.3]} 34. c7 {[%clk
0:03:02.8]} 34... Qc1+ {[%clk 0:03:03.9]} 35. Kf2 {[%clk 0:03:01.1]} 35... h4
{[%clk 0:03:02.5]} 36. Qxa7 {[%clk 0:02:57.2]} 36... Rc8 {[%clk 0:02:59.7]} 37.
Qb8 {[%clk 0:02:54.9]} 37... Qxc7 {[%clk 0:02:58.7]} 38. Qb2 {[%clk 0:02:53.7]}
38... Qc2+ {[%clk 0:02:57.1]} 39. Qxc2 {[%clk 0:02:50]} 39... Rxc2+ {[%clk
0:02:57]} 40. Kg1 {[%clk 0:02:48.5]} 40... f6 {[%clk 0:02:55.2]} 41. f5 {[%clk
0:02:48.4]} 41... exf5 {[%clk 0:02:54.3]} 42. Kh1 {[%clk 0:02:46.7]} 42... g5
{[%clk 0:02:54.2]} 43. Kg1 {[%clk 0:02:46.6]} 43... g4 {[%clk 0:02:52.5]} 44.
Kh1 {[%clk 0:02:46.5]} 44... f4 {[%clk 0:02:51.2]} 45. Kg1 {[%clk 0:02:45.5]}
45... f3 {[%clk 0:02:49.1]} 46. Kh1 {[%clk 0:02:45.4]} 46... g3 {[%clk 0:02:48]}
47. Kg1 {[%clk 0:02:43.7]} 47... Rc1# {[%clk 0:02:47.9]} 0-1

[Event "Live Chess"]
[Site "Chess.com"]
[Date "2023.05.21"]
[Round "-"]
[White "ChessClubLive"]
[Black "TheSmoulderingMaster"]
[Result "0-1"]
[WhiteElo "1657"]
[BlackElo "1662"]
[TimeControl "300"]
[EndTime "6:31:16 PDT"]
[Termination "TheSmoulderingMaster won by resignation"]

1. e4 {[%clk 0:04:58.7]} 1... c5 {[%clk 0:04:58.8]} 2. Nf3 {[%clk 0:04:56.6]}
2... d6 {[%clk 0:04:57.9]} 3. d4 {[%clk 0:04:52.9]} 3... cxd4 {[%clk 0:04:57.1]}
4. c3 {[%clk 0:04:51.5]} 4... dxc3 {[%clk 0:04:55.8]} 5. Nxc3 {[%clk 0:04:34.5]}
5... Nc6 {[%clk 0:04:53.6]} 6. Bc4 {[%clk 0:04:33.3]} 6... Nf6 {[%clk
0:04:51.1]} 7. O-O {[%clk 0:04:31.5]} 7... e6 {[%clk 0:04:49.3]} 8. Qe2 {[%clk
0:04:30.9]} 8... Be7 {[%clk 0:04:48.5]} 9. Rd1 {[%clk 0:04:30.1]} 9... O-O
{[%clk 0:04:47.7]} 10. Be3 {[%clk 0:04:28.7]} 10... e5 {[%clk 0:04:46.5]} 11.
Rac1 {[%clk 0:04:27.9]} 11... Bg4 {[%clk 0:04:45.3]} 12. h3 {[%clk 0:04:23.2]}
12... Bh5 {[%clk 0:04:43.7]} 13. g4 {[%clk 0:04:10.2]} 13... Nxg4 {[%clk
0:04:39.7]} 14. hxg4 {[%clk 0:04:08.8]} 14... Bxg4 {[%clk 0:04:39]} 15. Kg2
{[%clk 0:03:46.8]} 15... Kh8 {[%clk 0:04:37.7]} 16. Rh1 {[%clk 0:03:39.3]} 16...
f5 {[%clk 0:04:36.1]} 17. Nd5 {[%clk 0:03:27.9]} 17... fxe4 {[%clk 0:04:32.2]}
18. Rxh7+ {[%clk 0:03:11]} 18... Kxh7 {[%clk 0:04:30.2]} 19. Rh1+ {[%clk
0:03:09.2]} 19... Bh4 {[%clk 0:04:27.1]} 20. Rxh4+ {[%clk 0:03:06.4]} 20... Qxh4
{[%clk 0:04:25.2]} 21. Nxh4 {[%clk 0:03:01]} 21... Bxe2 {[%clk 0:04:24.1]} 22.
Bxe2 {[%clk 0:02:59.9]} 22... Nd4 {[%clk 0:04:19.1]} 23. Bxd4 {[%clk 0:02:16.1]}
23... exd4 {[%clk 0:04:16.1]} 24. Bh5 {[%clk 0:02:04.6]} 24... d3 {[%clk
0:04:13.3]} 25. Bg6+ {[%clk 0:02:02.3]} 25... Kh6 {[%clk 0:04:11.4]} 26. Bxe4
{[%clk 0:02:00.5]} 26... d2 {[%clk 0:04:09.8]} 27. Bc2 {[%clk 0:01:52.6]} 27...
Rac8 {[%clk 0:04:06.1]} 28. Nc3 {[%clk 0:01:48.6]} 28... Rfe8 {[%clk 0:04:01.2]}
29. Nf3 {[%clk 0:01:45.7]} 29... d5 {[%clk 0:03:57.1]} 30. Nxd2 {[%clk
0:01:19.8]} 30... d4 {[%clk 0:03:55.2]} 31. Nde4 {[%clk 0:01:19.5]} 31... dxc3
{[%clk 0:03:53.4]} 32. bxc3 {[%clk 0:00:44]} 32... Rc4 {[%clk 0:03:48.6]} 33.
Bd3 {[%clk 0:00:23.4]} 33... Rcxe4 {[%clk 0:03:46.5]} 0-1

[Event "Live Chess"]
[Site "Chess.com"]
[Date "2023.05.21"]
[Round "-"]
[White "risinghelios"]
[Black "ameetghasi100"]
[Result "0-1"]
[WhiteElo "1897"]
[BlackElo "2580"]
[TimeControl "300"]
[EndTime "6:31:18 PDT"]
[Termination "ameetghasi100 won by resignation"]

1. e4 {[%clk 0:04:59]} 1... c5 {[%clk 0:04:59.9]} 2. c3 {[%clk 0:04:57.9]} 2...
Nf6 {[%clk 0:04:55.9]} 3. e5 {[%clk 0:04:57.2]} 3... Nd5 {[%clk 0:04:55.5]} 4.
d4 {[%clk 0:04:56.8]} 4... cxd4 {[%clk 0:04:55.1]} 5. cxd4 {[%clk 0:04:56.5]}
5... d6 {[%clk 0:04:54.4]} 6. exd6 {[%clk 0:04:55.4]} 6... e6 {[%clk 0:04:52.6]}
7. Nf3 {[%clk 0:04:54.3]} 7... Bxd6 {[%clk 0:04:52.1]} 8. Bc4 {[%clk 0:04:54]}
8... Nc6 {[%clk 0:04:50.2]} 9. O-O {[%clk 0:04:52.8]} 9... O-O {[%clk
0:04:49.4]} 10. Bxd5 {[%clk 0:04:52]} 10... exd5 {[%clk 0:04:48.2]} 11. Nc3
{[%clk 0:04:51.8]} 11... Ne7 {[%clk 0:04:47.2]} 12. Be3 {[%clk 0:04:50.2]} 12...
Bg4 {[%clk 0:04:46]} 13. h3 {[%clk 0:04:49.2]} 13... Bh5 {[%clk 0:04:45.4]} 14.
Bg5 {[%clk 0:04:41.7]} 14... f6 {[%clk 0:04:44.3]} 15. Bh4 {[%clk 0:04:40.9]}
15... Nf5 {[%clk 0:04:43.5]} 16. Qb3 {[%clk 0:04:35.3]} 16... Bxf3 {[%clk
0:04:40.5]} 17. Nxd5 {[%clk 0:04:26.4]} 17... Kh8 {[%clk 0:04:34.6]} 18. gxf3
{[%clk 0:04:11.3]} 18... Nxh4 {[%clk 0:04:32.7]} 19. Kh1 {[%clk 0:04:10.5]}
19... Qd7 {[%clk 0:04:30.6]} 20. f4 {[%clk 0:04:07.1]} 20... Qf5 {[%clk
0:04:29.3]} 21. Qg3 {[%clk 0:04:04.5]} 21... Qxd5+ {[%clk 0:04:26.5]} 22. Kh2
{[%clk 0:04:01.8]} 22... Ng6 {[%clk 0:04:25.3]} 0-1

[Event "Live Chess"]
[Site "Chess.com"]
[Date "2023.05.21"]
[Round "-"]
[White "manthanit"]
[Black "ms_lilley"]
[Result "1-0"]
[WhiteElo "1082"]
[BlackElo "604"]
[TimeControl "300"]
[EndTime "6:31:20 PDT"]
[Termination "manthanit won by checkmate"]

1. e4 {[%clk 0:04:58.8]} 1... e6 {[%clk 0:04:58.6]} 2. d4 {[%clk 0:04:57.3]}
2... d5 {[%clk 0:04:57.1]} 3. exd5 {[%clk 0:04:56.8]} 3... exd5 {[%clk
0:04:55.6]} 4. Nc3 {[%clk 0:04:56.4]} 4... c6 {[%clk 0:04:53.4]} 5. h3 {[%clk
0:04:55.5]} 5... a6 {[%clk 0:04:51.8]} 6. Bd3 {[%clk 0:04:49.4]} 6... Nf6 {[%clk
0:04:49.1]} 7. Nf3 {[%clk 0:04:47.7]} 7... h6 {[%clk 0:04:47.3]} 8. O-O {[%clk
0:04:46.6]} 8... Bd6 {[%clk 0:04:45.2]} 9. Ne2 {[%clk 0:04:40.1]} 9... O-O
{[%clk 0:04:41.8]} 10. c4 {[%clk 0:04:38.5]} 10... Nbd7 {[%clk 0:04:24.6]} 11.
cxd5 {[%clk 0:04:36.2]} 11... cxd5 {[%clk 0:04:23.1]} 12. b3 {[%clk 0:04:28.8]}
12... b5 {[%clk 0:04:21.4]} 13. Bb2 {[%clk 0:04:25.4]} 13... Bb7 {[%clk
0:04:17.2]} 14. a4 {[%clk 0:04:24.1]} 14... b4 {[%clk 0:04:10.1]} 15. Ng3 {[%clk
0:04:07.6]} 15... a5 {[%clk 0:04:08]} 16. Rc1 {[%clk 0:03:57.1]} 16... Nb6
{[%clk 0:04:02]} 17. Qd2 {[%clk 0:03:43.7]} 17... Bxg3 {[%clk 0:03:43.9]} 18.
fxg3 {[%clk 0:03:39.5]} 18... Nh5 {[%clk 0:03:39.4]} 19. Kh2 {[%clk 0:03:37.3]}
19... Nd7 {[%clk 0:03:29.7]} 20. Ne5 {[%clk 0:03:24.3]} 20... Nxe5 {[%clk
0:03:27.7]} 21. dxe5 {[%clk 0:03:23.4]} 21... Qe7 {[%clk 0:03:16.7]} 22. Rce1
{[%clk 0:03:14.8]} 22... Qe6 {[%clk 0:03:14.4]} 23. Bf5 {[%clk 0:03:10.1]} 23...
Qd7 {[%clk 0:02:49.9]} 24. Bxd7 {[%clk 0:03:08.5]} 24... d4 {[%clk 0:02:40.9]}
25. Bxd4 {[%clk 0:03:04.8]} 25... Rad8 {[%clk 0:02:34.4]} 26. Bg4 {[%clk
0:03:03.2]} 26... Nxg3 {[%clk 0:02:24.4]} 27. Kxg3 {[%clk 0:03:02.1]} 27... g5
{[%clk 0:02:21.4]} 28. Kh2 {[%clk 0:03:00.6]} 28... Bd5 {[%clk 0:02:15.3]} 29.
Bb6 {[%clk 0:02:44.5]} 29... Bxb3 {[%clk 0:02:08.9]} 30. Qb2 {[%clk 0:02:35.6]}
30... Bxa4 {[%clk 0:02:06]} 31. Bxa5 {[%clk 0:02:34.3]} 31... b3 {[%clk
0:01:56.5]} 32. Bxd8 {[%clk 0:02:32.7]} 32... Rxd8 {[%clk 0:01:54.2]} 33. Rd1
{[%clk 0:02:31]} 33... Re8 {[%clk 0:01:49.1]} 34. Rfe1 {[%clk 0:02:25.9]} 34...
Kf8 {[%clk 0:01:33]} 35. Bd7 {[%clk 0:02:22.9]} 35... Re7 {[%clk 0:01:28.2]} 36.
Bxa4 {[%clk 0:02:21.6]} 36... f5 {[%clk 0:01:10.9]} 37. exf6 {[%clk 0:02:18.2]}
37... Rf7 {[%clk 0:01:07.6]} 38. Bxb3 {[%clk 0:02:14.8]} 38... h5 {[%clk
0:01:02.4]} 39. Bxf7 {[%clk 0:02:12.7]} 39... Kxf7 {[%clk 0:01:00.6]} 40. Rf1
{[%clk 0:02:08.4]} 40... g4 {[%clk 0:00:57.2]} 41. h4 {[%clk 0:02:06]} 41... Kg6
{[%clk 0:00:51.8]} 42. g3 {[%clk 0:02:04.9]} 42... Kf7 {[%clk 0:00:49.7]} 43.
Rde1 {[%clk 0:02:03.6]} 43... Kg6 {[%clk 0:00:48.4]} 44. Qe2 {[%clk 0:01:59.5]}
44... Kf7 {[%clk 0:00:47.6]} 45. Qe5 {[%clk 0:01:57.9]} 45... Kg6 {[%clk
0:00:46.1]} 46. Qg5+ {[%clk 0:01:53.7]} 46... Kf7 {[%clk 0:00:44.8]} 47. Qxh5+
{[%clk 0:01:52.4]} 47... Kf8 {[%clk 0:00:42.1]} 48. Qxg4 {[%clk 0:01:51.6]}
48... Kf7 {[%clk 0:00:40.1]} 49. Qd7+ {[%clk 0:01:49]} 49... Kg6 {[%clk
0:00:37]} 50. g4 {[%clk 0:01:47.7]} 50... Kh6 {[%clk 0:00:34.3]} 51. Kh3 {[%clk
0:01:46.6]} 51... Kg6 {[%clk 0:00:32.4]} 52. Qd5 {[%clk 0:01:42.6]} 52... Kh6
{[%clk 0:00:29.6]} 53. h5 {[%clk 0:01:35.8]} 53... Kh7 {[%clk 0:00:27.2]} 54. g5
{[%clk 0:01:34.8]} 54... Kh8 {[%clk 0:00:24.8]} 55. Kh4 {[%clk 0:01:33.9]} 55...
Kh7 {[%clk 0:00:23.6]} 56. Re7+ {[%clk 0:01:25.6]} 56... Kh8 {[%clk 0:00:21.1]}
57. Qd8# {[%clk 0:01:25.2]} 1-0

[Event "Live Chess"]
[Site "Chess.com"]
[Date "2023.05.21"]
[Round "-"]
[White "davigator"]
[Black "HoarseyHorsey"]
[Result "1-0"]
[WhiteElo "2305"]
[BlackElo "1467"]
[TimeControl "300"]
[EndTime "6:31:22 PDT"]
[Termination "davigator won by resignation"]

1. e4 {[%clk 0:04:57.4]} 1... c5 {[%clk 0:04:58.8]} 2. Nf3 {[%clk 0:04:55.4]}
2... e6 {[%clk 0:04:58.3]} 3. d4 {[%clk 0:04:55]} 3... cxd4 {[%clk 0:04:58]} 4.
Nxd4 {[%clk 0:04:54.6]} 4... Nf6 {[%clk 0:04:57.5]} 5. Nc3 {[%clk 0:04:54.1]}
5... Nc6 {[%clk 0:04:57.1]} 6. a3 {[%clk 0:04:44.8]} 6... Be7 {[%clk 0:04:52.9]}
7. f4 {[%clk 0:04:40.9]} 7... d5 {[%clk 0:04:51.1]} 8. e5 {[%clk 0:04:38.1]}
8... Nd7 {[%clk 0:04:50.3]} 9. Be3 {[%clk 0:04:36.5]} 9... Nxd4 {[%clk
0:04:41.9]} 10. Bxd4 {[%clk 0:04:35.1]} 10... Qa5 {[%clk 0:04:40.1]} 11. b4
{[%clk 0:04:30.7]} 11... Qc7 {[%clk 0:04:37.5]} 12. Nb5 {[%clk 0:04:28.2]} 12...
Qd8 {[%clk 0:04:34.6]} 13. Qg4 {[%clk 0:04:18.2]} 13... O-O {[%clk 0:04:33.6]}
14. Bd3 {[%clk 0:04:16.7]} 14... a6 {[%clk 0:04:19.7]} 15. Nc3 {[%clk
0:04:12.7]} 15... f6 {[%clk 0:04:17.9]} 16. Qxe6+ {[%clk 0:04:05.9]} 16... Kh8
{[%clk 0:04:15]} 17. Qxd5 {[%clk 0:04:05.1]} 17... fxe5 {[%clk 0:04:12.4]} 18.
fxe5 {[%clk 0:04:02.6]} 18... Nb6 {[%clk 0:03:46.5]} 19. Qxd8 {[%clk 0:03:47.1]}
19... Bxd8 {[%clk 0:03:46.4]} 20. O-O-O {[%clk 0:03:40.7]} 20... Bg5+ {[%clk
0:03:36.7]} 21. Kb1 {[%clk 0:03:39.6]} 21... Nd7 {[%clk 0:03:24.7]} 22. Be4
{[%clk 0:03:33.3]} 22... b5 {[%clk 0:03:14.5]} 1-0

[Event "Live Chess"]
[Site "Chess.com"]
[Date "2023.05.21"]
[Round "-"]
[White "zdanevych"]
[Black "BillythekidFellowes"]
[Result "0-1"]
[WhiteElo "1504"]
[BlackElo "2075"]
[TimeControl "300"]
[EndTime "6:31:23 PDT"]
[Termination "BillythekidFellowes won by resignation"]

1. d4 {[%clk 0:04:58.7]} 1... Nf6 {[%clk 0:04:58.1]} 2. c4 {[%clk 0:04:57.9]}
2... e6 {[%clk 0:04:57.1]} 3. Nc3 {[%clk 0:04:56.6]} 3... d5 {[%clk 0:04:55.7]}
4. cxd5 {[%clk 0:04:54.8]} 4... exd5 {[%clk 0:04:55.1]} 5. Nf3 {[%clk
0:04:53.5]} 5... c6 {[%clk 0:04:54.7]} 6. h3 {[%clk 0:04:51.5]} 6... Bd6 {[%clk
0:04:54.2]} 7. Bg5 {[%clk 0:04:50]} 7... O-O {[%clk 0:04:53.9]} 8. e3 {[%clk
0:04:48.5]} 8... Bf5 {[%clk 0:04:52.8]} 9. Bd3 {[%clk 0:04:47.7]} 9... Bxd3
{[%clk 0:04:52.1]} 10. Qxd3 {[%clk 0:04:47.6]} 10... Nbd7 {[%clk 0:04:51.5]} 11.
O-O {[%clk 0:04:46.6]} 11... Bc7 {[%clk 0:04:49.3]} 12. Rac1 {[%clk 0:04:42]}
12... h6 {[%clk 0:04:48.1]} 13. Bh4 {[%clk 0:04:41]} 13... Qe7 {[%clk
0:04:47.6]} 14. Rfe1 {[%clk 0:04:37.6]} 14... Qe6 {[%clk 0:04:43.4]} 15. e4
{[%clk 0:04:20.7]} 15... Nxe4 {[%clk 0:04:34.2]} 16. Nxe4 {[%clk 0:04:18.6]}
16... dxe4 {[%clk 0:04:34.1]} 17. Rxe4 {[%clk 0:04:18]} 17... Qg6 {[%clk
0:04:32.9]} 18. Qe3 {[%clk 0:03:59.4]} 18... Nb6 {[%clk 0:04:25.1]} 19. Re7
{[%clk 0:03:50.6]} 19... Nd5 {[%clk 0:04:22.7]} 20. Re4 {[%clk 0:03:47]} 20...
Nxe3 {[%clk 0:04:20.1]} 0-1